bitfinex/quotes_SOLUSD_20250805
["timestamp","ask_amount","ask_price","bid_price","bid_amount"]
[1754433340628,36.3756491,163.3,163.29,0.92]
[1754433341144,4.10978882,163.3,163.29,0.92]
[1754433341452,26.0,163.31,163.29,0.92]
[1754433341655,4.10978882,163.3,163.29,0.2]
[1754433341859,4.10978882,163.31,163.29,6.32407373]
[1754433342226,4.10978882,163.31,163.3,0.72]
[1754433342549,4.10978882,163.32,163.3,0.72]
[1754433342854,4.10978882,163.32,163.3,6.84369871]
[1754433343058,4.10978882,163.32,163.31,0.72]
[1754433343557,42.84,163.33,163.31,0.72]
[1754433343730,42.84,163.33,163.32,0.72]
[1754433343930,46.96108829,163.33,163.32,0.72]
[1754433344334,4.12108829,163.33,163.32,0.72]
[1754433347066,4.12108829,163.33,163.3,0.72]
[1754433347229,4.12108829,163.33,163.31,0.72]
[1754433347839,4.12108829,163.33,163.32,0.72]
[1754433351157,0.03,163.34,163.32,6.84294881]
[1754433351373,4.15108829,163.35,163.33,6.7657202]
[1754433351374,0.03,163.35,163.33,6.7657202]
[1754433351675,0.03,163.35,163.34,0.72]
[1754433351852,0.03,163.35,163.34,7.4857202]
[1754433352263,0.03,163.35,163.34,13.60791929]
[1754433352474,0.03,163.35,163.34,6.84219909]
[1754433357782,0.03,163.35,163.34,13.60791929]
[1754433357944,0.03,163.35,163.34,35.20791929]
[1754433358145,0.03,163.35,163.34,28.44219909]
[1754433358339,0.03,163.35,163.32,0.72]
[1754433358574,0.03,163.35,163.3,6.90354765]
[1754433358868,0.06,163.35,163.31,0.72]
[1754433359051,0.06,163.35,163.3,6.18354765]
[1754433359249,0.03,163.35,163.3,6.18354765]
[1754433359455,0.03,163.35,163.31,0.72]
[1754433359860,6.1518243,163.35,163.31,0.72]
[1754433360478,0.03,163.35,163.31,0.72]
[1754433360773,0.03,163.35,163.32,0.72]
[1754433361168,0.03,163.35,163.3,0.78]
[1754433361359,0.03,163.35,163.31,0.72]
[1754433362371,0.03,163.35,163.32,0.72]
[1754433364082,0.06,163.35,163.3,22.34]
[1754433364584,26.0,163.33,163.3,0.06]
[1754433364871,4.1424184,163.32,163.3,0.06]
[1754433365252,0.03,163.31,163.3,0.06]
[1754433365573,6.15332374,163.31,163.3,0.06]
[1754433365777,6.12332374,163.31,163.3,0.06]
[1754433367148,4.1124184,163.32,163.3,0.74]
[1754433367474,4.1129324,163.32,163.31,0.68]
[1754433367857,26.0,163.32,163.31,0.68]
[1754433368481,68.86,163.34,163.31,0.68]
[1754433368777,4.11259528,163.33,163.31,0.68]
[1754433369279,4.11259528,163.33,163.32,0.68]
[1754433371869,10.23516921,163.33,163.3,0.74]
[1754433372682,10.26516921,163.33,163.3,0.06]
[1754433372982,26.0,163.31,163.3,0.06]
[1754433373484,30.11328145,163.31,163.3,0.06]
[1754433373987,36.23660519,163.31,163.3,0.06]
[1754433375493,30.11328145,163.31,163.3,0.06]
[1754433375677,26.0,163.31,163.3,0.74]
[1754433375986,74.98281542,163.33,163.3,0.74]
[1754433376164,4.11270572,163.32,163.3,0.74]
[1754433377369,4.11270572,163.32,163.31,0.68]
[1754433378057,42.86,163.33,163.31,0.68]
[1754433378558,42.86,163.33,163.32,0.68]
[1754433378769,10.23527215,163.33,163.3,0.06]
[1754433378990,6.12257393,163.33,163.3,0.74]
[1754433379400,6.12257393,163.33,163.31,0.68]
[1754433379582,10.235225,163.34,163.31,0.68]
[1754433379898,10.235225,163.34,163.32,0.68]
[1754433380282,4.11287277,163.34,163.32,0.68]
[1754433383593,4.11287277,163.34,163.3,6.18365257]
[1754433383594,4.11287277,163.34,163.3,21.66]
[1754433383771,0.03,163.35,163.33,0.68]
[1754433383963,4.14498581,163.35,163.33,0.68]
[1754433384689,0.03,163.35,163.33,0.68]
[1754433384895,0.03,163.35,163.33,6.80244962]
[1754433385407,0.03,163.35,163.34,0.68]
[1754433388611,0.03,163.35,163.34,6.80219909]
[1754433391007,0.03,163.35,163.31,22.28]
[1754433391180,0.03,163.35,163.31,27.72310545]
[1754433391385,0.03,163.35,163.31,28.40310545]
[1754433391587,10.26700627,163.35,163.31,22.28]
[1754433392192,4.14517116,163.35,163.31,27.72314132]
[1754433392391,4.14517116,163.35,163.32,0.68]
[1754433392392,0.03,163.35,163.32,0.68]
[1754433392887,0.03,163.35,163.33,6.7657202]
[1754433393399,0.03,163.35,163.34,0.68]
[1754433393710,0.03,163.35,163.34,6.80219909]
[1754433393897,0.03,163.35,163.34,13.56791929]
[1754433396017,0.03,163.35,163.34,6.80219909]
[1754433397104,0.03,163.35,163.34,6.12219909]
[1754433397303,0.03,163.35,163.31,0.69]
[1754433398213,0.03,163.35,163.32,0.69]
[1754433398921,0.20216157,163.35,163.3,0.75]
[1754433399911,6.29434891,163.35,163.31,0.69]
[1754433400301,6.29434891,163.35,163.32,0.69]
[1754433400513,26.0,163.34,163.33,0.69]
[1754433400699,0.03,163.35,163.33,0.69]
[1754433400890,4.1438921,163.35,163.33,0.69]
[1754433401789,10.2657475,163.35,163.33,0.69]
[1754433402114,10.2657475,163.35,163.32,0.69]
[1754433406319,10.2657475,163.35,163.3,6.18345541]
[1754433406494,10.2657475,163.35,163.33,0.69]
[1754433408219,6.1518554,163.35,163.33,0.69]
[1754433408405,10.26776933,163.35,163.33,0.69]
[1754433408801,4.14591393,163.35,163.31,6.12330235]
[1754433409001,4.14591393,163.35,163.34,0.69]
[1754433409417,0.03,163.35,163.34,0.69]
[1754433409929,0.03,163.35,163.31,6.12330235]
[1754433409930,10.26777278,163.35,163.31,0.69]
[1754433410616,10.26777278,163.35,163.32,0.69]
[1754433416125,4.14594723,163.35,163.33,0.69]
[1754433416309,4.14594723,163.35,163.31,6.12330718]
[1754433416504,4.14594723,163.35,163.34,0.69]
[1754433417020,4.14594723,163.35,163.32,0.69]
[1754433417200,4.14594723,163.35,163.33,0.69]
[1754433418811,4.14594723,163.35,163.33,6.81250499]
[1754433419019,0.03,163.35,163.34,0.69]
[1754433420423,0.03,163.35,163.32,6.81280571]
[1754433420635,0.03,163.35,163.34,0.69]
[1754433420821,0.03,163.35,163.34,6.81219909]
[1754433421224,0.03,163.38,163.35,15.10621557]
[1754433421414,0.03,163.38,163.37,6.7657202]
[1754433421603,0.03,163.42,163.37,6.7657202]
[1754433421805,0.03,163.42,163.38,7.4557202]
[1754433422200,0.03,163.42,163.34,21.42769682]
[1754433422421,4.26953919,163.42,163.37,0.69]
[1754433422704,4.26953919,163.42,163.38,0.69]
[1754433423124,4.14953919,163.42,163.39,0.69]
[1754433423430,0.03,163.42,163.39,0.69]
[1754433424222,0.03,163.42,163.39,7.4557202]
[1754433424622,0.03,163.42,163.4,0.67]
[1754433425144,0.03,163.42,163.41,0.67]
[1754433427256,0.03,163.42,163.41,6.78957652]
[1754433427769,0.03,163.43,163.41,13.55529672]
[1754433428044,0.03,163.43,163.42,0.67]
[1754433429543,0.03,163.43,163.41,6.1194507]
[1754433429845,0.03,163.43,163.41,6.7894507]
[1754433430040,0.03,163.43,163.4,48.95980796]
[1754433430262,0.03,163.43,163.41,0.67]
[1754433431450,0.03,163.43,163.42,0.67]
[1754433432032,0.03,163.43,163.36,6.12144955]
[1754433432239,0.03,163.43,163.4,0.67]
[1754433432542,0.03,163.43,163.39,6.7657202]
[1754433432917,0.03,163.43,163.4,0.67]
[1754433433147,0.03,163.43,163.4,22.27]
[1754433433349,0.03,163.43,163.42,6.7657202]
[1754433433526,0.03,163.43,163.41,0.67]
[1754433433723,0.03,163.43,163.41,6.78947388]
[1754433433918,0.03,163.43,163.41,0.67]
[1754433435054,0.03,163.43,163.42,0.67]
[1754433436343,0.03,163.43,163.4,27.71984781]
[1754433436544,0.03,163.43,163.4,22.27]
[1754433437637,0.03,163.43,163.38,6.79058884]
[1754433437841,0.03,163.43,163.4,0.67]
[1754433438362,0.18,163.43,163.37,49.69105504]
[1754433438656,26.15,163.42,163.35,0.67]
[1754433438863,0.29216157,163.41,163.34,42.9]
[1754433439038,0.15,163.4,163.33,0.67]
[1754433439240,0.15,163.4,163.31,0.06]
[1754433439241,26.0,163.37,163.31,0.73]
[1754433439441,26.15,163.37,163.31,0.73]
[1754433439665,6.12144955,163.36,163.31,0.73]
[1754433439839,6.12144955,163.36,163.32,0.67]
[1754433440158,32.12120284,163.37,163.33,0.67]
[1754433440977,32.27120284,163.37,163.31,0.73]
[1754433441634,32.12120284,163.37,163.31,0.73]
[1754433441834,0.15,163.36,163.31,0.06]
[1754433442172,0.15,163.35,163.31,0.06]
[1754433443555,32.27120284,163.37,163.31,0.73]
[1754433444452,32.12120284,163.37,163.31,6.85326903]
[1754433444659,32.12120284,163.37,163.32,0.67]
[1754433445037,32.12120284,163.37,163.33,0.67]
[1754433445336,32.27120284,163.37,163.31,0.73]
[1754433445654,0.15,163.36,163.31,0.06]
[1754433445862,6.1218243,163.35,163.31,0.06]
[1754433446048,6.1218243,163.35,163.31,0.73]
[1754433446365,6.27156028,163.36,163.32,0.67]
[1754433446730,6.12156028,163.36,163.32,0.67]
[1754433447154,32.12117043,163.37,163.32,0.67]
[1754433447354,26.0,163.37,163.32,0.67]
[1754433447530,26.0,163.37,163.32,7.4357202]
[1754433447735,26.0,163.37,163.31,6.8257202]
[1754433447937,26.0,163.37,163.33,0.67]
[1754433448565,42.95,163.4,163.33,0.67]
[1754433448863,26.0,163.39,163.33,0.67]
[1754433449656,26.0,163.39,163.34,6.12219909]
[1754433450053,26.0,163.39,163.35,0.67]
[1754433450449,32.12039382,163.39,163.35,0.67]
[1754433450959,32.12039382,163.39,163.36,0.67]
[1754433451168,26.0,163.39,163.36,0.67]
[1754433451466,42.95,163.4,163.37,0.67]
[1754433451670,0.03,163.4,163.37,0.67]
[1754433451965,0.03,163.4,163.38,0.67]
[1754433452856,0.03,163.4,163.35,6.12148784]
[1754433452857,0.18,163.4,163.35,6.12148784]
[1754433453162,0.18,163.4,163.36,0.67]
[1754433453355,0.03,163.4,163.36,0.67]
[1754433454174,0.03,163.4,163.37,0.67]
[1754433454463,0.03,163.4,163.37,7.4357202]
[1754433454967,0.03,163.4,163.38,0.67]
[1754433455163,0.03,163.4,163.38,6.79048538]
[1754433455556,0.03,163.4,163.39,0.67]
[1754433456657,0.03,163.4,163.36,0.67]
[1754433456864,0.03,163.4,163.37,26.0]
[1754433457058,0.03,163.4,163.37,26.67]
[1754433458251,0.03,163.4,163.38,0.67]
[1754433458659,0.18,163.4,163.35,0.67]
[1754433458975,0.03,163.4,163.36,0.67]
[1754433459147,0.03,163.4,163.37,0.67]
[1754433459963,0.03,163.4,163.35,6.12176549]
[1754433460160,0.03,163.4,163.36,0.67]
[1754433461072,0.03,163.4,163.37,0.67]
[1754433463076,0.03,163.4,163.36,6.12140255]
[1754433463267,0.03,163.4,163.38,0.67]
[1754433464290,26.03,163.4,163.39,0.67]
[1754433465067,26.03,163.4,163.37,0.67]
[1754433465284,26.03,163.4,163.38,0.67]
[1754433466159,0.03,163.4,163.38,0.67]
[1754433466357,0.03,163.4,163.38,7.4357202]
[1754433466983,0.03,163.4,163.39,13.5560458]
[1754433468768,0.03,163.4,163.39,6.7903256]
[1754433468969,0.03,163.4,163.39,13.5560458]
[1754433469580,0.03,163.4,163.39,6.7903256]
[1754433470577,0.03,163.4,163.39,13.5560458]
[1754433482312,0.03,163.4,163.39,35.1560458]
[1754433499702,0.03,163.4,163.39,27.7203256]
[1754433499896,0.03,163.4,163.39,70.5003256]
[1754433501590,0.18,163.4,163.39,64.38]
[1754433502410,0.18,163.4,163.39,21.6]
[1754433502597,0.18,163.4,163.38,0.06]
[1754433502987,0.03,163.4,163.38,0.06]
[1754433503187,0.15,163.39,163.38,0.06]
[1754433503798,0.03,163.4,163.38,0.06]
[1754433503992,0.18,163.4,163.38,0.06]
[1754433505612,0.03,163.4,163.38,0.73]
[1754433508517,26.03,163.4,163.38,0.73]
[1754433509618,0.03,163.4,163.38,0.06]
[1754433510616,26.03,163.4,163.38,0.06]
[1754433511222,0.03,163.4,163.39,0.67]
[1754433511426,0.03,163.4,163.39,43.45]
[1754433511728,0.03,163.4,163.39,56.3360458]
[1754433512126,0.03,163.4,163.39,71.44226137]
[1754433517139,0.03,163.4,163.39,48.9003256]
[1754433517444,0.18,163.4,163.39,48.9003256]
[1754433517732,0.03,163.4,163.39,56.3160458]
[1754433521614,0.03,163.4,163.39,71.42226137]
[1754433522120,0.03,163.42,163.39,108.93510793]
[1754433522316,0.03,163.42,163.41,21.87193577]
[1754433522515,0.03,163.42,163.41,64.69193577]
[1754433522825,0.03,163.42,163.41,71.46151229]
[1754433526633,0.03,163.42,163.41,93.06151229]
[1754433527431,0.03,163.43,163.42,15.10621557]
[1754433527631,0.03,163.43,163.42,44.26409734]
[1754433528714,0.03,163.43,163.42,29.0157202]
[1754433529022,0.03,163.43,163.42,64.4]
[1754433529717,0.18,163.43,163.42,64.4]
[1754433530113,0.03,163.43,163.42,64.4]
[1754433531033,0.03,163.43,163.42,70.51920205]
[1754433532436,0.03,163.43,163.42,64.4]
[1754433532735,0.03,163.43,163.42,42.8]
[1754433534843,0.03,163.43,163.42,48.91920205]
[1754433536822,0.03,163.43,163.42,42.8]
[1754433537949,0.03,163.43,163.42,48.91920205]
[1754433538247,0.03,163.43,163.42,6.11920205]
[1754433538420,0.03,163.43,163.42,71.14920205]
[1754433542436,0.03,163.43,163.42,77.91492225]
[1754433542639,0.03,163.43,163.42,93.02113782]
[1754433543054,0.03,163.44,163.43,15.24837714]
[1754433543238,0.03,163.44,163.43,22.66409734]
[1754433543646,0.03,163.45,163.44,0.14216157]
[1754433543843,0.03,163.45,163.44,65.45409734]
[1754433544553,0.03,163.45,163.44,71.57255059]
[1754433544759,0.03,163.45,163.44,75.71874459]
[1754433545051,0.03,163.45,163.44,75.57658302]
[1754433545439,0.03,163.45,163.44,71.43038902]
[1754433545964,0.03,163.49,163.45,15.10621557]
[1754433546133,0.03,163.49,163.48,6.7657202]
[1754433546335,0.03,163.49,163.48,49.6257202]
[1754433546655,0.03,163.49,163.48,56.4026764]
[1754433550459,0.03,163.49,163.48,78.0026764]
[1754433550660,0.03,163.49,163.48,71.2369562]
[1754433550959,0.03,163.49,163.48,78.0026764]
[1754433552833,0.03,163.49,163.48,93.10889197]
[1754433554885,1e-08,163.49,163.48,93.25105354]
[1754433555160,0.03,163.51,163.49,15.24837714]
[1754433555334,0.03,163.51,163.5,64.85409734]
[1754433555335,1e-08,163.51,163.5,64.85409734]
[1754433555538,1e-08,163.51,163.5,65.51409734]
[1754433556440,1e-08,163.51,163.5,71.63030529]
[1754433558056,1e-08,163.51,163.5,71.48814372]
[1754433559164,1e-08,163.51,163.5,64.72242352]
[1754433559351,1e-08,163.51,163.5,71.48814372]
[1754433562076,1e-08,163.51,163.5,93.08814372]
[1754433562366,1e-08,163.51,163.5,70.55620795]
[1754433562579,1e-08,163.51,163.5,64.44]
[1754433562740,1e-08,163.51,163.5,70.55620795]
[1754433562941,1e-08,163.51,163.5,77.98192815]
[1754433563373,1e-08,163.51,163.5,93.08814372]
[1754433563842,1e-08,163.51,163.5,111.45080572]
[1754433569275,1e-08,163.51,163.5,111.59296729]
[1754433570256,1e-08,163.51,163.5,112.20458808]
[1754433571658,1e-08,163.51,163.5,111.59296729]
[1754433572060,1e-08,163.51,163.5,111.45080572]
[1754433572360,1e-08,163.51,163.5,95.53649872]
[1754433572678,1e-08,163.51,163.5,88.77077852]
[1754433572916,1e-08,163.51,163.5,95.53649872]
[1754433573058,1e-08,163.51,163.5,95.67866029]
[1754433573979,0.03,163.53,163.52,21.59999999]
[1754433574201,0.03,163.53,163.52,71.16572019]
[1754433574606,0.03,163.53,163.52,84.50887719]
[1754433574981,0.03,163.53,163.52,83.85887719]
[1754433575597,0.03,163.53,163.52,84.50887719]
[1754433575785,0.03,163.53,163.52,83.85887719]
[1754433575992,0.03,163.53,163.52,89.97433707]
[1754433576175,0.03,163.53,163.52,77.28118007]
[1754433576408,0.03,163.53,163.52,79.72923607]
[1754433576905,0.03,163.53,163.52,72.96351587]
[1754433577108,0.03,163.53,163.52,70.49545987]
[1754433577612,0.03,163.53,163.52,77.26118007]
[1754433578107,0.03,163.53,163.52,77.91118007]
[1754433582222,0.03,163.53,163.52,77.26118007]
[1754433587991,0.03,163.53,163.52,77.91118007]
[1754433588708,0.03,163.53,163.52,75.45417071]
[1754433589321,0.03,163.53,163.52,90.56038628]
[1754433590421,0.03,163.53,163.52,93.00859128]
[1754433590626,0.8127195,163.55,163.53,15.10621557]
[1754433590929,0.8127195,163.55,163.54,49.4710252]
[1754433591125,0.8127195,163.55,163.54,50.1210252]
[1754433591511,0.8127195,163.55,163.54,55.58573719]
[1754433592958,0.8127195,163.55,163.54,56.23573719]
[1754433593134,0.8127195,163.55,163.54,71.34195276]
[1754433593834,0.8127195,163.55,163.54,92.94195275]
[1754433595813,0.8127195,163.55,163.54,95.38970775]
[1754433597308,0.1,163.59,163.54,110.81864931]
[1754433597648,0.1,163.59,163.58,6.7310252]
[1754433597812,0.1,163.59,163.58,77.18424196]
[1754433598145,0.1,163.59,163.58,77.83424196]
[1754433598742,0.1,163.59,163.58,77.18424196]
[1754433599841,0.1,163.59,163.58,27.71321676]
[1754433600130,0.31,163.59,163.58,70.45321676]
[1754433600350,0.31,163.59,163.58,64.33999999]
[1754433600699,0.31,163.59,163.58,21.59999999]
[1754433600940,0.31,163.59,163.58,64.33999999]
[1754433601134,0.31,163.59,163.58,21.59999999]
[1754433603310,6.42284308,163.59,163.55,21.59999999]
[1754433603518,26.0,163.57,163.51,12.84661289]
[1754433603848,26.0,163.57,163.53,0.68]
[1754433604052,26.0,163.57,163.54,42.76]
[1754433604429,26.21,163.57,163.54,42.76]
[1754433604921,6.11336885,163.58,163.54,42.76]
[1754433605241,0.21,163.56,163.54,42.76]
[1754433605612,4.32584261,163.57,163.54,42.76]
[1754433605944,0.21,163.56,163.54,42.76]
[1754433606353,4.11584261,163.57,163.54,42.76]
[1754433606701,4.32584261,163.57,163.54,42.76]
[1754433606950,15.01382533,163.56,163.54,42.76]
[1754433607110,4.78399267,163.55,163.53,42.76]
[1754433607312,4.78399267,163.54,163.5,0.06]
[1754433607621,30.57528447,163.53,163.51,42.78]
[1754433607849,4.57532788,163.52,163.51,42.78]
[1754433608023,0.21,163.52,163.5,0.06]
[1754433608229,4.57535078,163.51,163.5,0.06]
[1754433608456,4.78535078,163.51,163.5,0.06]
[1754433608754,34.90294801,163.51,163.5,0.06]
[1754433608951,41.0187819,163.51,163.5,0.06]
[1754433609710,34.69294801,163.51,163.5,0.06]
[1754433610006,30.57535078,163.51,163.5,0.06]
[1754433610207,4.57535078,163.51,163.5,0.74]
[1754433610401,4.57057988,163.51,163.5,0.74]
[1754433611654,4.57057988,163.51,163.5,6.85620795]
[1754433612291,26.0,163.53,163.5,6.85620795]
[1754433612458,48.91372265,163.57,163.51,43.5]
[1754433612653,8.67975776,163.56,163.51,43.5]
[1754433612856,4.56850933,163.55,163.51,42.82]
[1754433613079,4.56850933,163.54,163.53,6.11508591]
[1754433613296,4.56850933,163.54,163.53,6.79508591]
[1754433613451,4.56815332,163.54,163.53,6.79508591]
[1754433615959,4.11124843,163.58,163.53,6.79508591]
[1754433616162,4.56757317,163.57,163.54,42.82]
[1754433616487,4.56757317,163.56,163.55,0.68]
[1754433616669,4.56757317,163.56,163.54,49.5510252]
[1754433616862,26.1,163.59,163.54,49.5510252]
[1754433617076,4.5671431,163.58,163.55,6.11433812]
[1754433617280,4.5671431,163.57,163.56,0.68]
[1754433617677,0.1,163.59,163.56,0.68]
[1754433618029,4.56669295,163.58,163.57,42.8]
[1754433618156,0.1,163.59,163.57,43.48]
[1754433618358,0.1,163.59,163.58,0.68]
[1754433618589,4.66617618,163.59,163.58,0.68]
[1754433619093,4.66617618,163.59,163.57,42.8]
[1754433619312,4.7764316,163.58,163.54,42.84]
[1754433619494,4.5664316,163.57,163.54,48.95466063]
[1754433619702,0.21,163.58,163.54,48.95466063]
[1754433620003,4.56697805,163.57,163.54,48.95466063]
[1754433620200,0.21,163.58,163.54,48.95466063]
[1754433620404,4.56702771,163.57,163.54,48.95466063]
[1754433620611,0.21,163.58,163.54,48.95466063]
[1754433620795,4.56702771,163.57,163.54,48.95466063]
[1754433620989,0.21,163.58,163.54,48.95466063]
[1754433621201,4.5670289,163.57,163.54,49.63466063]
[1754433621509,26.1,163.59,163.54,48.95466063]
[1754433621682,4.56688215,163.58,163.55,0.68]
[1754433622005,4.56688215,163.57,163.55,0.68]
[1754433622207,32.42296043,163.59,163.54,48.95466063]
[1754433622377,4.56684272,163.58,163.54,49.63466063]
[1754433622583,4.56684272,163.57,163.54,49.63466063]
[1754433622897,4.56692939,163.56,163.54,42.84]
[1754433623094,0.21,163.58,163.54,48.95466182]
[1754433623296,4.56707879,163.57,163.54,49.63466182]
[1754433623503,4.56707879,163.56,163.54,49.63466182]
[1754433623708,32.21296043,163.59,163.54,49.63466182]
[1754433623879,4.56708778,163.58,163.54,49.63466182]
[1754433624079,4.56708778,163.57,163.54,49.63466182]
[1754433624280,4.56708778,163.56,163.54,71.23466181]
[1754433624499,32.21296043,163.59,163.54,71.23466181]
[1754433624695,4.56709685,163.58,163.54,71.23466181]
[1754433624904,4.56709685,163.57,163.54,71.23466181]
[1754433625210,4.56709685,163.56,163.55,0.68]
[1754433628016,26.0,163.57,163.55,0.68]
[1754433628212,26.0,163.57,163.55,6.11426039]
[1754433628382,26.0,163.57,163.56,0.68]
[1754433628577,4.56696437,163.57,163.56,0.68]
[1754433628997,30.56696437,163.57,163.56,0.68]
[1754433629383,30.56696437,163.57,163.54,65.11999999]
[1754433629591,4.56696437,163.56,163.54,65.11999999]
[1754433629919,26.0,163.57,163.54,65.11999999]
[1754433630082,4.56710334,163.56,163.54,65.11999999]
[1754433630280,32.32325291,163.58,163.54,64.43999999]
[1754433630539,4.56718818,163.57,163.54,64.43999999]
[1754433630683,4.56718818,163.56,163.54,71.23468903]
[1754433630883,26.0,163.57,163.55,0.68]
[1754433631098,26.0,163.57,163.56,42.8]
[1754433631292,30.56695197,163.57,163.56,43.48]
[1754433631892,4.56695197,163.57,163.56,49.59396429]
[1754433632090,26.1,163.59,163.56,49.59396429]
[1754433632310,26.1,163.59,163.57,0.68]
[1754433632519,0.1,163.59,163.58,43.48]
[1754433632819,4.66626792,163.59,163.58,43.48]
[1754433633047,0.1,163.59,163.58,43.48]
[1754433633803,0.1,163.59,163.58,42.8]
[1754433634000,0.1,163.59,163.56,42.8]
[1754433634625,0.1,163.59,163.56,43.52]
[1754433635312,0.1,163.59,163.57,0.72]
[1754433635707,0.1,163.59,163.56,42.8]
[1754433636025,6.42285278,163.59,163.56,64.39999999]
[1754433637100,6.21285278,163.59,163.56,64.39999999]
[1754433637427,26.0,163.58,163.57,0.72]
[1754433638318,26.0,163.58,163.56,21.59999999]
[1754433639204,26.0,163.58,163.56,22.31999999]
[1754433640324,26.0,163.58,163.57,0.72]
[1754433641529,0.1,163.59,163.57,43.54]
[1754433641732,0.1,163.59,163.58,0.72]
[1754433641921,0.1,163.59,163.57,42.82]
[1754433642103,0.1,163.59,163.57,43.54]
[1754433642733,6.42284752,163.59,163.56,21.59999999]
[1754433643043,0.21,163.58,163.56,64.41999999]
[1754433643424,10.32272672,163.59,163.56,64.41999999]
[1754433643629,10.53272672,163.59,163.56,64.41999999]
[1754433644310,10.32272672,163.59,163.56,64.41999999]
[1754433645034,26.0,163.57,163.56,64.41999999]
[1754433645212,32.11359051,163.57,163.56,21.59999999]
[1754433646238,26.0,163.57,163.56,21.59999999]
[1754433646532,32.11359051,163.57,163.56,21.59999999]
[1754433647810,32.11359051,163.57,163.54,43.52]
[1754433648010,26.0,163.57,163.55,0.72]
[1754433648410,32.11373473,163.57,163.54,42.8]
[1754433648833,32.11373473,163.57,163.54,43.52]
[1754433649044,32.32373473,163.57,163.54,42.8]
[1754433649223,32.11373473,163.57,163.54,42.8]
[1754433649736,32.11373473,163.57,163.54,43.52]
[1754433650311,0.21,163.56,163.53,0.06]
[1754433650512,26.0,163.54,163.53,0.06]
[1754433650735,30.46550602,163.54,163.53,0.06]
[1754433650931,30.25550602,163.54,163.53,0.06]
[1754433651332,30.46550602,163.54,163.53,0.06]
[1754433651519,45.57172159,163.54,163.53,0.06]
[1754433651717,0.14216157,163.52,163.51,0.06]
[1754433651939,62.41172159,163.52,163.51,0.06]
[1754433652440,68.52718147,163.52,163.51,0.06]
[1754433654122,53.4209659,163.52,163.51,0.06]
[1754433655555,68.52718147,163.52,163.51,0.06]
[1754433657553,53.4209659,163.52,163.51,0.06]
[1754433657851,68.31718147,163.52,163.51,0.06]
[1754433658540,53.2109659,163.52,163.51,0.06]
[1754433658744,53.06880433,163.52,163.51,0.06]
[1754433659128,53.06880433,163.52,163.51,0.78]
[1754433659646,48.95545988,163.52,163.51,0.78]
[1754433659836,74.95545988,163.52,163.51,0.78]
[1754433660622,68.84,163.52,163.51,0.78]
[1754433660823,48.95545988,163.52,163.51,0.06]
[1754433661020,53.05868103,163.52,163.51,0.06]
[1754433661656,53.4108426,163.52,163.51,0.06]
[1754433662126,53.2008426,163.52,163.51,0.06]
[1754433665979,48.95545988,163.52,163.51,0.77]
[1754433666143,6.11506415,163.54,163.51,0.77]
[1754433666329,48.95506415,163.54,163.52,0.71]
[1754433666528,26.0,163.52,163.51,0.06]
[1754433666742,26.0,163.52,163.51,0.77]
[1754433667176,26.0,163.52,163.51,0.06]
[1754433667627,26.0,163.52,163.51,0.77]
[1754433669962,42.84,163.54,163.51,0.77]